bitfinex/quotes_BTCUSD_20240820
["timestamp","ask_amount","ask_price","bid_price","bid_amount"]
[1724166776409,0.50909,58927.0,58923.0,0.03397]
[1724166777851,0.50909,58927.0,58926.0,0.003]
[1724166778010,0.50909,58927.0,58926.0,0.20097298]
[1724166778249,0.45340828,58927.0,58926.0,0.61867298]
[1724166778447,0.28395691,58927.0,58926.0,0.61867298]
[1724166779029,0.18675387,58927.0,58926.0,1.38817298]
[1724166779215,0.16179466,58927.0,58926.0,1.71105588]
[1724166779439,0.197131,58956.0,58945.0,0.16947]
[1724166779440,0.008931,58956.0,58945.0,0.16947]
[1724166780015,0.008931,58956.0,58945.0,0.03397]
[1724166780411,0.0002,58959.0,58956.0,0.1355]
[1724166780611,0.0002,58959.0,58958.0,0.03697]
[1724166780809,0.0002,58959.0,58950.0,0.1]
[1724166780810,0.00514622,58976.0,58968.0,0.001]
[1724166781009,0.49229154,58973.0,58972.0,0.4167]
[1724166781218,0.00514622,58976.0,58975.0,0.001]
[1724166781398,0.00514622,58976.0,58975.0,0.04507]
[1724166781605,0.00514622,58976.0,58975.0,0.07904]
[1724166782219,0.00514622,58976.0,58975.0,0.08104]
[1724166782439,0.00904201,58981.0,58980.0,0.001]
[1724166782641,0.00904201,58981.0,58979.0,0.03497]
[1724166782842,0.00904201,58981.0,58980.0,0.03397]
[1724166783068,0.00904201,58981.0,58980.0,0.03497]
[1724166783224,0.00904201,58981.0,58980.0,0.42757]
[1724166783424,0.00904201,58981.0,58980.0,0.87527]
[1724166783849,0.00904201,58981.0,58980.0,1.13927298]
[1724166784048,0.009031,58998.0,58989.0,0.001]
[1724166784283,0.009031,58998.0,58982.0,0.002]
[1724166784284,0.009031,58998.0,58995.0,0.001]
[1724166784724,0.009031,58998.0,58985.0,0.03397]
[1724166785372,0.009031,58998.0,58995.0,0.001]
[1724166785723,0.009031,58998.0,58992.0,0.001]
[1724166785928,0.009031,58998.0,58995.0,0.003]
[1724166786129,0.009031,58998.0,58995.0,0.43777]
[1724166786332,0.009031,58998.0,58995.0,0.077747]
[1724166786536,0.009031,58998.0,58995.0,0.03397]
[1724166786690,0.203231,58998.0,58995.0,0.03397]
[1724166786894,0.01663161,58996.0,58983.0,0.03397]
[1724166787161,0.01663161,58996.0,58985.0,0.03397]
[1724166787455,0.01663161,58996.0,58987.0,0.03397]
[1724166788222,0.01663161,58996.0,58988.0,0.43477]
[1724166788594,0.009031,58996.0,58988.0,0.43477]
[1724166789702,0.009031,58996.0,58988.0,0.44380765]
[1724166792511,0.009031,58996.0,58988.0,0.04300765]
[1724166792693,0.009031,58996.0,58983.0,0.03397]
[1724166792694,0.1852,58995.0,58983.0,0.03397]
[1724166792896,0.00423811,58994.0,58983.0,0.03397]
[1724166793065,0.01202538,58994.0,58983.0,0.03397]
[1724166793844,0.01202538,58994.0,58978.0,0.03397]
[1724166793845,0.00778727,58994.0,58978.0,0.03397]
[1724166794036,0.00778727,58994.0,58979.0,0.001]
[1724166794240,0.00778727,58994.0,58986.0,0.001]
[1724166794555,0.00778727,58994.0,58980.0,0.03397]
[1724166794756,0.00778727,58994.0,58985.0,0.001]
[1724166795019,0.009031,58996.0,58986.0,0.03397]
[1724166796021,0.009031,58996.0,58987.0,0.03397]
[1724166796426,0.009031,58996.0,58986.0,0.04333948]
[1724166796427,0.1881,58994.0,58986.0,0.04333948]
[1724166796766,0.19233771,58994.0,58986.0,0.03397]
[1724166796979,0.00750845,58993.0,58981.0,0.00904177]
[1724166797206,0.00750845,58993.0,58976.0,0.001]
[1724166797441,0.00750845,58993.0,58978.0,0.03397]
[1724166798124,0.00750845,58993.0,58984.0,0.03397]
[1724166799180,0.00718081,58993.0,58985.0,0.03397]
[1724166799635,0.01141867,58993.0,58985.0,0.03397]
[1724166799862,0.46769283,58992.0,58973.0,0.03397]
[1724166800101,0.41660483,58992.0,58973.0,0.03397]
[1724166800898,0.41660483,58992.0,58973.0,0.03313]
[1724166801127,0.40913786,58992.0,58973.0,0.03313]
[1724166801421,0.1881,58994.0,58950.0,0.3758]
[1724166801422,0.1847,58989.0,58950.0,0.3758]
[1724166801665,0.56384111,58991.0,58952.0,0.001]
[1724166801666,0.001,58987.0,58952.0,0.001]
[1724166801975,0.40423958,58988.0,58959.0,0.03497]
[1724166801976,0.57183958,58986.0,58959.0,0.03497]
[1724166802210,0.57183958,58986.0,58965.0,0.001]
[1724166802211,0.57511659,58986.0,58965.0,0.001]
[1724166802454,0.00423873,58985.0,58967.0,0.03397]
[1724166802689,0.57511659,58986.0,58971.0,0.003]
[1724166802996,0.009031,58996.0,58981.0,0.003]
[1724166803264,0.009031,58996.0,58972.0,0.16400298]
[1724166803265,0.49229154,58993.0,58984.0,0.003]
[1724166803698,0.009031,58996.0,58981.0,0.003]
[1724166803963,0.009031,58996.0,58988.0,0.001]
[1724166804181,0.009031,58996.0,58984.0,0.001]
[1724166804819,0.009031,58996.0,58985.0,0.003]
[1724166805472,0.009031,58996.0,58985.0,0.03397]
[1724166805703,0.009031,58996.0,58988.0,0.001]
[1724166805925,0.009031,58996.0,58988.0,0.003]
[1724166806220,0.009031,58996.0,58987.0,0.003]
[1724166806432,0.009031,58996.0,58986.0,0.03397]
[1724166806647,0.009031,58996.0,58989.0,0.001]
[1724166806862,0.009031,58996.0,58991.0,0.03397]
[1724166807919,0.009031,58996.0,58992.0,0.03397]
[1724166808125,0.009031,58996.0,58971.0,0.03397]
[1724166808126,0.3751,58994.0,58971.0,0.03397]
[1724166808339,0.3751,58994.0,58977.0,0.0093402]
[1724166808340,0.06267516,58993.0,58977.0,0.0093402]
[1724166808557,0.06267516,58993.0,58971.0,0.03397]
[1724166808558,0.00423829,58993.0,58971.0,0.03397]
[1724166808997,0.00423829,58993.0,58972.0,0.03397]
[1724166809419,1.3750889,58994.0,58972.0,0.03397]
[1724166809420,1.37432719,58994.0,58972.0,0.03397]
[1724166809631,0.00423859,58993.0,58972.0,0.03397]
[1724166810068,0.00423859,58993.0,58973.0,0.03397]
[1724166810710,0.9999889,58994.0,58975.0,0.46707]
[1724166810942,0.009031,58996.0,58980.0,0.001]
[1724166811174,0.009031,58996.0,58982.0,0.03397]
[1724166811395,0.009031,58996.0,58983.0,0.00339007]
[1724166811825,0.009031,58996.0,58982.0,0.03397]
[1724166812039,0.009031,58996.0,58983.0,0.00339007]
[1724166812274,0.009031,58996.0,58956.0,0.179]
[1724166812275,0.1996,58990.0,58956.0,0.179]
[1724166812494,0.1996,58990.0,58928.0,0.05123012]
[1724166812495,0.4,58978.0,58932.0,0.3758]
[1724166812735,0.6112,58971.0,58932.0,0.3758]
[1724166812941,0.003,58966.0,58932.0,0.3758]
[1724166813151,1.6111889,58965.0,58937.0,0.001]
[1724166813357,0.4116,58963.0,58937.0,0.003]
[1724166813563,0.51310097,58962.0,58935.0,0.0092406]
[1724166813772,0.4127,58961.0,58935.0,0.0092406]
[1724166814004,0.51310097,58960.0,58939.0,0.001]
[1724166814205,0.50886,58960.0,58941.0,0.001]
[1724166814417,0.0042409,58959.0,58939.0,0.003]
[1724166814621,0.50886,58958.0,58939.0,0.003]
[1724166815038,0.00424087,58957.0,58939.0,0.003]
[1724166815239,0.50886,58956.0,58940.0,0.00339257]
[1724166815446,0.50886,58956.0,58938.0,0.003]
[1724166815653,0.50886,58956.0,58937.0,0.003]
[1724166815858,0.50886,58956.0,58939.0,0.001]
[1724166816062,0.50886,58956.0,58941.0,0.001]
[1724166816467,0.50886,58956.0,58942.0,0.001]
[1724166816690,0.50886,58956.0,58939.0,0.002]
[1724166816691,0.50886,58956.0,58941.0,0.001]
[1724166816895,0.50886,58956.0,58939.0,0.002]
[1724166816896,0.50886,58956.0,58943.0,0.001]
[1724166817108,0.50886,58956.0,58941.0,0.001]
[1724166817317,0.50886,58956.0,58947.0,0.002]
[1724166817534,0.50886,58956.0,58948.0,0.3916]
[1724166817753,0.50886,58956.0,58944.0,0.001]
[1724166817945,0.50886,58956.0,58946.0,0.04243703]
[1724166818279,0.50886,58956.0,58947.0,0.03399]
[1724166818899,0.50886,58956.0,58948.0,0.003]
[1724166819116,0.50886,58956.0,58953.0,0.004]
[1724166819317,0.50886,58956.0,58950.0,0.13399]
[1724166819593,0.50886,58956.0,58950.0,0.03399]
[1724166820218,0.50886,58956.0,58947.0,0.001]
[1724166820421,0.50886,58956.0,58947.0,0.013981]
[1724166820622,0.50886,58956.0,58948.0,0.00339225]
[1724166820824,0.50886,58956.0,58948.0,0.03738225]
[1724166821036,0.50886,58956.0,58955.0,0.003]
[1724166821248,0.50886,58956.0,58955.0,0.59169298]
[1724166821456,0.50886,58956.0,58955.0,0.65086228]
[1724166821664,0.50886,58956.0,58955.0,0.75086228]
[1724166821881,0.50886,58956.0,58955.0,0.69169298]
[1724166822098,0.50886,58956.0,58955.0,0.68669298]
[1724166822311,0.50886,58956.0,58955.0,0.13399]
[1724166822731,0.50886,58956.0,58952.0,0.03399]
[1724166823359,0.50886,58956.0,58952.0,0.088059]
[1724166823572,0.50886,58956.0,58954.0,0.03399]
[1724166823939,0.50886,58956.0,58955.0,0.61169298]
[1724166823940,0.06142152,58956.0,58955.0,0.61169298]
[1724166824139,0.12152864,58985.0,58955.0,0.61169298]
[1724166824140,0.69009354,58994.0,58975.0,0.2454]
[1724166824348,0.69009354,58994.0,58980.0,0.001]
[1724166824758,0.69009354,58994.0,58981.0,0.00339009]
[1724166824970,0.197802,58994.0,58981.0,0.00339009]
[1724166825301,0.197802,58994.0,58979.0,0.03499]
[1724166825505,0.197802,58994.0,58976.0,0.1]
[1724166825506,0.197802,58994.0,58981.0,0.03399]
[1724166825892,0.197802,58994.0,58982.0,0.00439024]
[1724166826103,0.197802,58994.0,58983.0,0.03399]
[1724166826305,0.197802,58994.0,58984.0,0.00339008]
[1724166828040,0.000902,58994.0,58989.0,0.3916]
[1724166828237,0.000902,58994.0,58990.0,0.07325]
[1724166829147,0.000902,58994.0,58993.0,0.001]
[1724166829343,0.000902,58994.0,58993.0,0.20638243]
[1724166829492,0.000902,58994.0,58993.0,0.30638243]
[1724166829855,0.000902,58994.0,58993.0,0.3888018]
[1724166830187,0.000902,58994.0,58973.0,0.17982]
[1724166830188,0.590102,58994.0,58973.0,0.03481]
[1724166830399,0.200302,58994.0,58974.0,0.16739346]
[1724166830605,0.200302,58994.0,58980.0,0.001]
[1724166831014,0.200302,58994.0,58975.0,0.05792035]
[1724166831015,0.200302,58994.0,58986.0,0.001]
[1724166831432,0.000902,58994.0,58990.0,0.001]
[1724166831640,0.000902,58994.0,58989.0,0.03399]
[1724166831641,0.000902,58994.0,58991.0,0.00338971]
[1724166831844,0.000902,58994.0,58991.0,0.00438971]
[1724166832059,0.000902,58994.0,58993.0,0.03899]
[1724166832269,0.000902,58994.0,58993.0,0.23302071]
[1724166832485,0.3777,58992.0,58967.0,0.0636075]
[1724166832695,0.000902,58994.0,58967.0,0.0636075]
[1724166832696,0.3777,58990.0,58967.0,0.0636075]
[1724166832907,0.60220923,58989.0,58967.0,0.0636075]
[1724166833112,0.44715193,58988.0,58967.0,0.0636075]
[1724166833315,0.00423923,58989.0,58967.0,0.0636075]
[1724166833316,0.04885193,58986.0,58967.0,0.0636075]
[1724166833521,0.19663947,58985.0,58967.0,0.0636075]
[1724166833725,0.3921,58984.0,58967.0,0.0636075]
[1724166833933,0.3921,58983.0,58967.0,0.0636075]
[1724166835190,0.3921,58983.0,58968.0,0.03399]
[1724166835445,0.3921,58983.0,58968.0,0.41739]
[1724166836053,0.3921,58983.0,58970.0,0.001]
[1724166836263,0.1924,58985.0,58976.0,0.003]
[1724166836489,0.3779,58990.0,58978.0,0.003]
[1724166836709,0.3779,58990.0,58979.0,0.00339028]
[1724166836915,0.1851,58993.0,58980.0,0.001]
[1724166837120,0.000902,58994.0,58984.0,0.001]
[1724166837324,0.000902,58994.0,58990.0,0.001]
[1724166837543,0.000902,58994.0,58993.0,0.001]
[1724166837741,0.00047192,58994.0,58993.0,0.16500298]
[1724166837954,0.00047192,58994.0,58993.0,0.57400298]
[1724166838162,0.00047192,58994.0,58993.0,0.73360328]
[1724166838375,0.00047192,58994.0,58993.0,0.76759328]
[1724166839400,0.00047192,58994.0,58973.0,0.51072]
[1724166839401,0.00047192,58994.0,58990.0,0.001]
[1724166839606,0.00047192,58994.0,58991.0,0.001]
[1724166839812,0.00047192,58994.0,58991.0,0.19799298]
[1724166840022,0.00047192,58994.0,58993.0,0.001]
[1724166840231,0.00047192,58994.0,58991.0,0.21829228]
[1724166840232,0.00047192,58994.0,58992.0,0.001]
[1724166840437,0.00047192,58994.0,58993.0,0.20438227]
[1724166840647,0.00047192,58994.0,58993.0,0.68268227]
[1724166840854,0.00047192,58994.0,58993.0,0.68068227]
[1724166841072,0.00047192,58994.0,58993.0,0.70168227]
[1724166841486,0.00047192,58994.0,58993.0,0.67429298]
[1724166841693,0.00047192,58994.0,58993.0,0.51029]
[1724166841899,0.00047192,58994.0,58992.0,0.001]
[1724166842105,0.00047192,58994.0,58989.0,0.001]
[1724166842313,0.00047192,58994.0,58993.0,0.19899298]
[1724166842528,0.00047192,58994.0,58993.0,0.20099298]
[1724166842767,0.00047192,58994.0,58993.0,0.03399]
[1724166843453,0.00047192,58994.0,58993.0,0.19899298]
[1724166843677,0.00047192,58994.0,58993.0,0.03399]
[1724166843884,0.00047192,58994.0,58993.0,0.19899298]
[1724166844114,0.00047192,58994.0,58993.0,0.03399]
[1724166844323,0.00047192,58994.0,58989.0,0.001]
[1724166845128,0.00047192,58994.0,58988.0,0.001]
[1724166845334,0.00047192,58994.0,58988.0,0.03499]
[1724166845588,0.188,58993.0,58988.0,0.03399]
[1724166845791,0.001,58989.0,58968.0,0.00339065]
[1724166845987,0.4158,58988.0,58968.0,0.03399]
[1724166846281,0.188,58987.0,58968.0,0.03399]
[1724166846445,0.19323845,58987.0,58968.0,0.03399]
[1724166846650,0.3854,58984.0,58968.0,0.03399]
[1724166847195,0.00423866,58983.0,58968.0,0.03399]
[1724166847413,0.3864,58984.0,58967.0,0.0636075]
[1724166847615,0.188,58987.0,58977.0,0.001]
[1724166847823,0.188,58987.0,58980.0,0.001]
[1724166847957,0.188,58987.0,58981.0,0.00339035]
[1724166848151,0.188,58987.0,58981.0,0.03728035]
[1724166848356,0.00047192,58994.0,58983.0,0.03399]
[1724166848357,0.18057192,58994.0,58983.0,0.03399]
[1724166848940,0.18057192,58994.0,58984.0,0.00314339]
[1724166849564,0.18057192,58994.0,58983.0,0.03399]
[1724166849974,0.18057192,58994.0,58984.0,0.00314339]
[1724166850175,0.18057192,58994.0,58983.0,0.03399]
[1724166851121,0.18057192,58994.0,58977.0,0.002]
[1724166851321,0.18057192,58994.0,58978.0,0.001]
[1724166851740,0.18057192,58994.0,58977.0,0.13399]
[1724166851887,0.18057192,58994.0,58977.0,0.03399]
[1724166852512,0.18057192,58994.0,58977.0,0.03499]
[1724166852871,0.18057192,58994.0,58981.0,0.03399]
[1724166853073,0.18057192,58994.0,58984.0,0.001]
[1724166853272,0.18057192,58994.0,58987.0,0.001]
[1724166853632,0.18057192,58994.0,58986.0,0.03713313]
[1724166853839,0.18057192,58994.0,58988.0,0.00314313]
[1724166854248,0.18057192,58994.0,58987.0,0.001]
[1724166854482,0.00047192,58994.0,58988.0,0.03399]
[1724166854633,0.00047192,58994.0,58993.0,0.001]
[1724166854836,0.00047192,58994.0,58991.0,0.03713172]
[1724166855035,0.00047192,58994.0,58991.0,0.03399]
[1724166855840,0.00047192,58994.0,58990.0,0.03599]
[1724166856041,0.00047192,58994.0,58990.0,0.19799298]
[1724166857261,0.00047192,58994.0,58986.0,0.03399]
[1724166857472,0.00047192,58994.0,58960.0,0.5099]
[1724166857473,0.00047192,58994.0,58988.0,0.03399]
[1724166858507,0.00047192,58994.0,58985.0,0.001]
[1724166858664,0.00047192,58994.0,58984.0,0.03399]
[1724166859072,0.00047192,58994.0,58985.0,0.00314241]
[1724166859520,2.195331,59000.0,58985.0,0.00314241]
[1724166859521,0.009031,59002.0,59001.0,0.003]
[1724166859670,0.00011,59024.0,59014.0,0.002]
[1724166859855,0.00011,59024.0,59014.0,0.04112618]
[1724166860047,0.00011,59024.0,59014.0,0.16412618]
[1724166860484,0.00011,59024.0,59014.0,0.67089]
[1724166860686,0.580931,59015.0,58987.0,0.03399]
[1724166860884,0.580931,59015.0,58980.0,0.1]
[1724166860885,0.3814,58994.0,58980.0,0.1]
[1724166861156,0.3814,58994.0,58981.0,0.00314333]
[1724166861359,0.3814,58994.0,58982.0,0.01031433]
[1724166861602,0.49229154,59012.0,58980.0,0.1]
[1724166861823,0.001,58997.0,58980.0,0.1]
[1724166862030,0.001,58993.0,58980.0,0.1]
[1724166862234,0.001,58989.0,58980.0,0.1]
[1724166862480,0.001,58982.0,58980.0,0.1]
[1724166862728,0.001,58999.0,58980.0,0.1]
[1724166862986,0.48729154,58997.0,58980.0,0.1]
[1724166863242,0.00278871,58996.0,58980.0,0.1]
[1724166863959,0.00278871,58995.0,58980.0,0.1]
[1724166864422,0.00278871,59000.0,58980.0,0.1]
[1724166864684,0.12030765,58999.0,58980.0,0.1]
[1724166864924,0.00278871,58998.0,58980.0,0.1]
[1724166865167,0.10278871,58998.0,58980.0,0.1]
[1724166865429,0.1,59001.0,58981.0,0.00339055]
[1724166865684,0.5678,59000.0,58981.0,0.00339055]
[1724166865910,0.5678,59000.0,58981.0,0.01372961]
[1724166866174,0.38888871,58999.0,58980.0,0.1]
[1724166866673,0.04866048,58996.0,58980.0,0.1]
[1724166867401,0.46187943,58999.0,58981.0,0.00339055]
[1724166867402,0.04866048,58995.0,58981.0,0.00339055]
[1724166867634,0.04866048,58997.0,58980.0,0.1]
[1724166867869,0.04866048,58993.0,58980.0,0.1]
[1724166868105,0.00278871,58998.0,58980.0,0.1]
[1724166868106,0.46436048,58991.0,58980.0,0.1]
[1724166868340,0.04866048,58987.0,58980.0,0.1]
[1724166868580,0.04866048,58988.0,58980.0,0.1]
[1724166868821,0.04866048,58989.0,58980.0,0.1]
[1724166869083,0.1908,58990.0,58980.0,0.1]
[1724166869331,0.04866048,58987.0,58980.0,0.1]
[1724166869548,0.04866048,58986.0,58980.0,0.1]
[1724166870022,0.07299072,58989.0,58980.0,0.1]
[1724166870023,0.04866048,58985.0,58980.0,0.1]
[1724166870488,0.0487519,58986.0,58980.0,0.1]
[1724166870740,0.0487519,58985.0,58980.0,0.1]
[1724166870979,0.07312786,58989.0,58980.0,0.100821]
[1724166870980,0.0487519,58982.0,58980.0,0.100821]
[1724166871222,0.38588871,58984.0,58980.0,0.100821]
[1724166871223,0.3831,58984.0,58980.0,0.100821]
[1724166871476,0.43184042,58984.0,58980.0,0.100821]
[1724166871682,0.05152913,58983.0,58980.0,0.100821]
[1724166872097,0.04874042,58983.0,58980.0,0.100821]
[1724166872295,0.43184042,58984.0,58980.0,0.100821]
[1724166872724,0.04874042,58983.0,58980.0,0.100821]
[1724166872958,0.04874042,58982.0,58980.0,0.100821]
[1724166873165,0.04874042,58983.0,58980.0,0.100821]
[1724166873987,0.04874042,58982.0,58980.0,0.100821]
[1724166874193,0.04874042,58981.0,58980.0,0.100821]
[1724166874400,0.04874042,58982.0,58980.0,0.100821]
[1724166874608,0.04874042,58983.0,58980.0,0.100821]
[1724166874810,0.3831,58984.0,58980.0,0.100821]
[1724166874811,0.04874042,58982.0,58980.0,0.100821]
[1724166875239,0.04874042,58981.0,58980.0,0.100821]
[1724166876073,0.3899,58992.0,58980.0,0.100821]
[1724166876074,0.04870061,58989.0,58980.0,0.100821]
[1724166876281,0.04870061,58991.0,58980.0,0.100821]
[1724166876484,0.04870061,58992.0,58980.0,0.100821]
[1724166877308,0.07305091,58994.0,58980.0,0.100821]
[1724166877309,0.04870061,58991.0,58980.0,0.100821]
[1724166877511,0.04870061,58990.0,58980.0,0.100821]
[1724166878548,0.04870061,58989.0,58980.0,0.100821]
[1724166878924,0.04870061,58989.0,58980.0,0.17269347]
[1724166879135,0.04870061,58989.0,58980.0,0.1693031]
[1724166879336,0.07305091,58992.0,58981.0,0.00339029]
[1724166879337,0.04870061,58990.0,58981.0,0.00339029]
[1724166879928,0.04870061,58990.0,58980.0,0.1693031]
[1724166880129,0.04870061,58988.0,58980.0,0.100821]
[1724166880759,0.04870061,58991.0,58980.0,0.100821]
[1724166880964,0.18470311,58996.0,58980.0,0.100821]
[1724166880965,0.04870061,58992.0,58980.0,0.100821]
[1724166881222,0.04870061,58992.0,58980.0,0.16984212]
[1724166881449,0.04870061,58992.0,58980.0,0.33939112]
[1724166881655,0.04870061,58989.0,58980.0,0.33939112]
[1724166881862,0.04870061,58989.0,58980.0,0.27037]
[1724166882080,0.04870061,58988.0,58980.0,0.27037]
[1724166882281,0.04870061,58989.0,58980.0,0.27037]
[1724166882484,0.04870061,58990.0,58980.0,0.27037]
[1724166883140,0.18470311,58996.0,58980.0,0.27037]
[1724166883141,0.04870061,58991.0,58980.0,0.27037]
[1724166883366,0.04870061,58991.0,58980.0,0.355907]
[1724166883566,0.04870061,58991.0,58980.0,0.27037]
[1724166884162,0.04870061,58991.0,58982.0,0.001]
[1724166884577,0.04870061,58991.0,58981.0,0.00339013]
[1724166884982,0.04872543,58991.0,58980.0,0.27037]
[1724166885180,0.04872543,58990.0,58980.0,0.27037]
[1724166885408,0.04872543,58990.0,58981.0,0.046627]
[1724166885815,0.09745087,58995.0,58983.0,0.3896]
[1724166885816,0.04872543,58995.0,58983.0,0.3896]
[1724166886030,0.00090311,58996.0,58989.0,0.03399]
[1724166886235,0.00090311,58996.0,58988.0,0.572]
[1724166886236,0.0073,58992.0,58991.0,0.03399]
[1724166886445,0.0073,58992.0,58991.0,0.19799298]
[1724166886644,0.0073,58992.0,58991.0,0.25876538]
[1724166886769,0.0073,58992.0,58991.0,0.25537601]
[1724166887176,0.0073,58992.0,58991.0,0.25876534]
[1724166887377,0.0073,58992.0,58991.0,0.20138231]
[1724166888160,0.0073,58992.0,58991.0,0.59098231]
[1724166888815,0.0073,58992.0,58991.0,0.59298231]
[1724166888946,0.0073,58992.0,58991.0,0.59398231]
[1724166889146,0.0073,58992.0,58991.0,0.59198231]
[1724166889352,0.0073,58992.0,58991.0,0.69242054]
[1724166889548,0.0073,58992.0,58991.0,0.79242054]
[1724166890008,0.0073,58992.0,58991.0,0.79642054]
[1724166890365,0.0073,58992.0,58991.0,0.79242054]
[1724166890539,0.0073,58992.0,58991.0,0.99422054]
[1724166890778,0.0073,58992.0,58991.0,1.17322054]
[1724166890992,0.0073,58992.0,58991.0,1.16983121]
[1724166891189,0.0073,58992.0,58991.0,0.99083121]
[1724166891606,0.0073,58992.0,58991.0,0.88539298]
[1724166891779,0.0073,58992.0,58985.0,0.1842]
[1724166892020,0.0073,58992.0,58980.0,0.27037]
[1724166892021,0.0073,58992.0,58981.0,0.3912]
[1724166892455,0.0073,58992.0,58982.0,0.16400298]
[1724166892658,0.0073,58992.0,58981.0,0.3912]
[1724166892873,0.0073,58992.0,58981.0,0.42519]
[1724166895332,0.0073,58992.0,58981.0,0.43447531]
[1724166895750,0.05602543,58992.0,58981.0,0.03399]
[1724166895955,0.1801,58990.0,58981.0,0.03399]
[1724166896392,0.23161414,58990.0,58981.0,0.03399]
[1724166896614,0.3951,58989.0,58981.0,0.03399]
[1724166896811,0.3951,58989.0,58980.0,0.27037]
[1724166896812,0.3951,58983.0,58980.0,0.27037]
[1724166897020,0.07587686,58982.0,58980.0,0.27037]
[1724166897227,0.07308815,58981.0,58980.0,0.27037]
[1724166897442,0.10023958,58982.0,58980.0,0.27037]
[1724166897646,0.10023958,58982.0,58981.0,0.000821]
[1724166897854,0.09745087,58982.0,58981.0,0.000821]
[1724166898033,0.3951,58983.0,58981.0,0.000821]
[1724166898270,0.46807726,58983.0,58981.0,0.000821]
[1724166899548,0.3951,58983.0,58981.0,0.000821]
[1724166899993,0.04867657,58993.0,58982.0,0.03399]
[1724166900188,0.04957968,58996.0,58981.0,0.0279401]
[1724166900400,0.08362387,58995.0,58981.0,0.000821]
[1724166900611,0.04867657,58990.0,58981.0,0.000821]
[1724166900810,0.07297726,58993.0,58981.0,0.000821]
[1724166900811,0.42167657,58991.0,58981.0,0.000821]
[1724166901016,0.5745,58988.0,58981.0,0.000821]
[1724166901238,0.04867657,58982.0,58981.0,0.000821]
[1724166901438,0.6269889,58982.0,58981.0,0.000821]
[1724166902042,1.2107889,58982.0,58981.0,0.000821]
[1724166902326,1.2117889,58982.0,58981.0,0.000821]
[1724166902495,0.581,58981.0,58980.0,0.071191]
[1724166902874,0.578,58981.0,58980.0,0.071191]
[1724166903295,0.001,58978.0,58973.0,0.00082]
[1724166903494,0.579,58980.0,58973.0,0.00082]
[1724166903495,0.579,58974.0,58973.0,0.00082]
[1724166903907,0.1932,58966.0,58956.0,0.000821]
[1724166904115,0.04867409,58961.0,58956.0,0.000821]
[1724166904316,1.3847889,58965.0,58956.0,0.000821]
[1724166904317,0.04867409,58964.0,58956.0,0.000821]
[1724166904706,1.3847889,58965.0,58956.0,0.000821]
[1724166904707,0.04867409,58960.0,58956.0,0.000821]
[1724166904959,0.5765,58957.0,58956.0,0.000821]
[1724166905166,0.64950732,58957.0,58956.0,0.000821]
[1724166905371,0.5765,58957.0,58956.0,0.000821]
[1724166907079,0.07300732,58962.0,58956.0,0.000821]
[1724166907269,0.9999889,58965.0,58956.0,0.000821]
[1724166907487,1.11943779,58965.0,58956.0,0.000821]
[1724166907678,0.00278871,58964.0,58956.0,0.000821]
[1724166908010,1.11943779,58965.0,58956.0,0.000821]
[1724166909257,0.9999889,58965.0,58956.0,0.000821]
[1724166909672,0.00278871,58964.0,58956.0,0.000821]
[1724166910105,0.9999889,58965.0,58956.0,0.000821]
[1724166910628,0.00278871,58964.0,58956.0,0.000821]
[1724166911240,0.4063,58963.0,58956.0,0.000821]
[1724166911415,0.0835184,58962.0,58956.0,0.000821]
[1724166911822,0.00278871,58962.0,58956.0,0.000821]
[1724166912172,0.4063,58963.0,58956.0,0.085541]
[1724166913829,0.9999889,58965.0,58957.0,0.00339229]
[1724166914031,0.9999889,58965.0,58957.0,0.06832494]
[1724166914207,0.9999889,58965.0,58958.0,0.001]
[1724166914423,0.14271678,58980.0,58962.0,0.03399]
[1724166914787,0.6269889,58979.0,58963.0,0.00339118]
[1724166914986,0.6269889,58979.0,58963.0,0.16739416]
[1724166915215,0.04857401,58994.0,58971.0,0.412]
[1724166915422,0.49229154,58986.0,58976.0,0.412]
[1724166915622,0.6269889,58993.0,58977.0,0.16739346]
[1724166915824,0.6269889,58993.0,58978.0,0.65633935]
[1724166916031,0.6269889,58993.0,58979.0,0.16739305]
[1724166916236,0.6269889,58993.0,58980.0,0.3783]
[1724166916437,0.6269889,58993.0,58982.0,0.3783]
[1724166916656,0.6269889,58993.0,58983.0,0.00339007]
[1724166916861,0.00090311,58996.0,58986.0,0.3783]
[1724166917081,0.00090311,58996.0,58988.0,0.3783]
[1724166917291,0.00090311,58996.0,58986.0,0.002]
[1724166917292,0.00090311,58996.0,58991.0,0.03399]
[1724166917494,0.00090311,58996.0,58991.0,0.19799298]
[1724166918105,0.00090311,58996.0,58993.0,0.03399]
[1724166918309,0.00090311,58996.0,58995.0,0.03599]
[1724166918512,0.00090311,58996.0,58995.0,0.67629298]
[1724166918927,0.00090311,58996.0,58995.0,0.67829298]
[1724166919140,0.00090311,58996.0,58995.0,0.68029298]
[1724166919343,0.00090311,58996.0,58995.0,0.76830228]
[1724166919543,0.00090311,58996.0,58995.0,0.75731228]
[1724166919672,0.00090311,58996.0,58995.0,0.64230298]
[1724166920450,0.00090311,58996.0,58995.0,0.67629298]
[1724166920890,0.00090311,58996.0,58995.0,0.68129298]
[1724166921301,0.00090311,58996.0,58995.0,0.67729298]
[1724166921514,0.00090311,58996.0,58995.0,0.67929298]
[1724166921730,0.00090311,58996.0,58995.0,0.85649298]
[1724166922792,0.00090311,58996.0,58995.0,0.69249]
[1724166923551,0.00090311,58996.0,58995.0,0.59249]
[1724166923763,0.00090311,58996.0,58995.0,0.75649298]
[1724166924565,0.00090311,58996.0,58995.0,0.41229]
[1724166926510,0.00090311,58996.0,58995.0,0.453519]
[1724166926724,0.00090311,58996.0,58995.0,0.41229]
[1724166926935,0.00090311,58996.0,58995.0,0.03399]
[1724166927148,0.00090311,58996.0,58985.0,0.002]
[1724166927149,0.00090311,58996.0,58981.0,0.5969]